Cogmind - Beta 13 @@@ ROGUE MODE // 2024.04.14 @ 01:55:57 Player: Malak Gallen Result: Self-destructed Performance ------------- Evolutions (2) 1000 Regions Visited (4) 800 Robots Destroyed (64) 320 Value Destroyed (1389) 1389 Prototype IDs (4) 80 Alien Tech Used (0) 0 Bonus (318) 318 TOTAL SCORE: 3907 Bonus ------- High Alert Combat Kills 231 Follower Combat Kills 87 Cogmind --------- Core Integrity 514/550 Matter 238/300 Energy 251/265 System Corruption 0% Temperature Hot (235) Movement Treading (160) Location -8/Materials Parts ------- > --- POWER (1) -------- Improved Ion Engine > --- PROPULSION (4) --- Light Treads Light Treads Light Treads Improved Treads > --- UTILITY (3) ------ Medium Storage Unit Terrain Scanner Terrain Scan Processor > --- WEAPON (3) ------- EM Pulse Gun Improved EM Shotgun Improved Assault Rifle > --- INVENTORY (10) --- Ion Engine Improved Ion Engine Light Treads Aluminum Leg Small Storage Unit Signal Interpreter Light Assault Rifle Mining Laser Peak State ------------ > --- POWER ------------ Improved Ion Engine > --- PROPULSION ------- Light Treads Light Treads Light Treads Improved Treads > --- UTILITY ---------- Medium Storage Unit Terrain Scanner Terrain Scan Processor > --- WEAPON ----------- EM Shotgun Improved EM Shotgun Improved Assault Rifle > --- INVENTORY -------- Ion Engine Improved Ion Engine Light Treads Aluminum Leg Small Storage Unit Signal Interpreter EM Pulse Gun Light Assault Rifle Mining Laser [Rating: 20] Favorites ----------- Power Improved Ion Engine Engine Improved Ion Engine Propulsion Light Treads Treads Light Treads Leg Aluminum Leg Utility Medium Storage Unit Device Terrain Scanner Storage Medium Storage Unit Processor Terrain Scan Processor Protection Medium Armor Plating Weapon Light Assault Rifle Energy Gun Improved EM Shotgun Ballistic Gun Light Assault Rifle Ballistic Cannon Light Cannon Build | -11 -10 -10 -9 -8 ------- Run | Yrd Mat Min Mat Mat Slots Evolved 4 | . . . 2 2 Power . | . . . . . Propulsion 2 | . . . 1 1 Utility 1 | . . . 1 . Weapon 1 | . . . . 1 Parts Attached 48 | 7 11 3 24 3 Power 10 | 2 4 . 4 . Engine 10 | 2 4 . 4 . Core . | . . . . . Reactor . | . . . . . Propulsion 15 | 2 1 2 9 1 Treads 12 | . . 2 9 1 Leg 3 | 2 1 . . . Wheel . | . . . . . Hover . | . . . . . Flight . | . . . . . Utility 6 | 1 1 . 4 . Device 1 | . . . 1 . Storage 2 | 1 . . 1 . Processor 2 | . 1 . 1 . Hackware . | . . . . . Protection 1 | . . . 1 . Artifact . | . . . . . Weapon 17 | 2 5 1 7 2 Energy Gun 3 | . . . 1 2 Energy Cannon . | . . . . . Ballistic Gun 13 | 2 5 1 5 . Ballistic Cannon 1 | . . . 1 . Launcher . | . . . . . Special Weapon . | . . . . . Impact Weapon . | . . . . . Slashing Weapon . | . . . . . Piercing Weapon . | . . . . . Special Melee Weapon . | . . . . . Unidentified Prototypes 2 | . . . 2 . Parts Lost 3 | . . . 2 1 Power . | . . . . . Propulsion 2 | . . . 2 . Utility . | . . . . . Weapon 1 | . . . . 1 Highest Loss Streak 1 | . . . 1 1 To Critical Strikes . | . . . . . Average Slot Usage (%) 98 | . 98 100 98 98 Engine 11 | . 14 14 11 9 Treads 23 | . . 18 31 36 Leg 7 | . 28 9 . . Device 6 | . . . 10 9 Storage 11 | . 14 14 11 9 Processor 9 | . 12 14 8 9 Protection 1 | . . . 2 . Energy Gun 2 | . . . 1 16 Ballistic Gun 18 | . 28 28 15 9 Ballistic Cannon 3 | . . . 5 . Naked Turns . | . . . . . Heaviest Build 30 | 12 12 10 30 27 Greatest Support 83 | 20 20 40 63 83 Greatest Overweight (x) 1 | 1 . . . . Average Overweight (x) . | . . . . . Largest Inventory Capacity 10 | 8 8 8 10 10 Average Capacity 9 | 7 8 8 9 10 Most Carried 10 | 4 8 8 10 9 Average Carried 8 | 2 7 7 9 8 Final Capacity 10 | 8 8 8 10 10 Final Carried 10 | 4 8 8 10 8 Class Distribution -------------------- 54% | Scavenger-Mutant 37% | Mutant 7% | Scavenger-Skirmisher Dominant Class ---------------- Mutant | -10/Materials Scavenger-Mutant | -10/Mines Scavenger-Mutant | -9/Materials Scavenger-Skirmisher | -8/Materials Resources | -11 -10 -10 -9 -8 ----------- Run | Yrd Mat Min Mat Mat Matter Collected 1241 | 239 213 22 732 35 Remotely . | . . . . . Salvage Created 1743 | . 219 . 998 526 Parts 135 | . 23 . 83 29 Haulers Intercepted 2 | . 1 . 1 . Recyclers Shooed 3 | . . 2 1 . Parts Field Recycled . | . . . . . Retrieved Matter . | . . . . . Parts Self-Destructed . | . . . . . Prevented . | . . . . . Kills | -11 -10 -10 -9 -8 ------- Run | Yrd Mat Min Mat Mat Combat Hostiles Destroyed 52 | . 9 . 32 11 Guns 37 | . 9 . 18 10 Cannons 14 | . . . 14 . Classes Destroyed 10 | . 3 . 5 2 Worker 2 | . . . 2 . Builder 4 | . . . 3 1 Hauler 2 | . 1 . 1 . Recycler 1 | . . . . 1 Watcher 3 | . 2 . 1 . Swarmer 27 | . 9 . 13 5 Grunt 14 | . . . 12 2 Duelist 1 | . . . 1 . Sentry 9 | . . . 6 3 Hunter 1 | . . . . 1 Best Kill Streak 10 | . 3 . 10 10 Combat Bots Only 8 | . 3 . 7 8 Max Kills in Single Turn 2 | . 2 . 2 2 Gunslinging 1 | . 1 . . 1 Exploded . | . . . . . Melee . | . . . . . Uniques/NPCs Destroyed . | . . . . . Combat | -11 -10 -10 -9 -8 -------- Run | Yrd Mat Min Mat Mat Hostile Shots Fired 255 | . 59 1 155 40 Missed 70 | . 16 . 47 7 Damage Taken 1995 | . 358 8 1194 435 Core 301 | . 90 . 175 36 Absorbed by Shields . | . . . . . Core Remaining (%) 73 | 100 . 64 56 . Volleys Fired 163 | . 41 . 98 24 Largest 3 | . 2 . 2 3 Hottest 113 | . 40 . 55 113 Shots Fired 341 | . 82 . 196 63 Gun 284 | . 82 . 139 63 Cannon 57 | . . . 57 . Launcher . | . . . . . Special . | . . . . . Kinetic 302 | . 82 . 196 24 Thermal . | . . . . . Explosive . | . . . . . Electromagnetic 39 | . . . . 39 Robot Hit Streak 15 | . 8 . 12 15 Robot Miss Streak 9 | . 9 . 4 5 Penetration Max . | . . . . . Secondary Targets 8 | . 2 . 5 1 Max Gunslinging Chain 1 | . 1 . 1 1 Shots Hit Robots 210 | . 41 . 127 42 Core Hits 105 | . 18 . 63 24 Critical Kills 1 | . 1 . . . Critical Parts Destroyed 2 | . . . 2 . Critical Strikes 3 | . 1 . 2 . Destroy 3 | . 1 . 2 . Melee Attacks . | . . . . . Impact . | . . . . . Slashing . | . . . . . Piercing . | . . . . . Sneak Attacks . | . . . . . Combat Hostiles . | . . . . . Follow-up Attacks . | . . . . . Damage Inflicted 2929 | . 328 1 1963 637 Guns 1996 | . 323 . 1036 637 Cannons 673 | . . . 673 . Explosions 238 | . . . 238 . Melee . | . . . . . Ramming 22 | . 5 1 16 . Kinetic 2203 | . 323 . 1709 171 Thermal . | . . . . . Explosive 238 | . . . 238 . Electromagnetic 466 | . . . . 466 Impact . | . . . . . Slashing . | . . . . . Piercing . | . . . . . Highest Corruption . | . . . . . Average Corruption . | . . . . . Corruption Purged . | . . . . . Corruption Blocked . | . . . . . Overload Shots . | . . . . . Overflow Damage 52 | . . . 52 . Projectiles . | . . . . . Explosions 52 | . . . 52 . Melee . | . . . . . Knockbacks 7 | . . . 7 . Impact . | . . . . . Kinetic 6 | . . . 6 . Secondary 1 | . . . 1 . Self-Inflicted Damage . | . . . . . Shots . | . . . . . Rammed 10 | . . 2 8 . Targets Rammed 14 | . 3 2 9 . Kicked 3 | . 3 . . . Crushed 1 | . . . 1 . Highest Temperature 235 | . . . 49 235 Average Temperature 52 | . . . 13 87 Received Heat Transfer 579 | . . . 390 189 Siege Activations . | . . . . . Robots Corrupted 1 | . . . . 1 Combat Hostiles 1 | . . . . 1 Parts Fried 2 | . . . . 2 Impact Corruptions . | . . . . . Robots Melted . | . . . . . Combat Hostiles . | . . . . . Parts Melted . | . . . . . Heat Transferred . | . . . . . Parts Sabotaged . | . . . . . Parts Stolen . | . . . . . Parts Stripped . | . . . . . Power Chain Reactions . | . . . . . Alert | -11 -10 -10 -9 -8 ------- Run | Yrd Mat Min Mat Mat Peak Influence 756 | . 244 138 756 704 Initial 319 | . . 48 53 319 Average 329 | . 109 92 457 448 Maximum Alert Level 3 | . 1 . 3 3 Low Security (%) 46 | 100 91 100 22 . Level 1 13 | . 8 . 15 32 Level 2 29 | . . . 43 61 Level 3 10 | . . . 17 5 Level 4 . | . . . . . Level 5 . | . . . . . High Security . | . . . . . Max Security . | . . . . . Squads Dispatched 6 | . 1 . 3 2 Investigation 4 | . 1 . 2 1 Extermination . | . . . . . Reinforcement 2 | . . . 1 1 Assault . | . . . . . Garrison . | . . . . . Intercept . | . . . . . Searches Triggered . | . . . . . Construction Impeded 1 | . . . 1 . Haulers Reinforced . | . . . . . Active Scanning Responses . | . . . . . Cargo Convoy Interrupts . | . . . . . Stealth | -11 -10 -10 -9 -8 --------- Run | Yrd Mat Min Mat Mat Distress Signals 8 | . 2 . 4 2 Communications Jammed . | . . . . . Distress Signals . | . . . . . Times Spotted 93 | . 16 3 60 14 Peak Tracking Total 9 | . 3 3 9 7 Tactical Retreats 11 | . 2 . 8 1 Traps | -11 -10 -10 -9 -8 ------- Run | Yrd Mat Min Mat Mat Traps Triggered 2 | . 2 . . . Indirectly . | . . . . . Trap Hack Attempts . | . . . . . Triggered . | . . . . . Disarmed . | . . . . . Reprogrammed . | . . . . . Reused . | . . . . . Traps Extracted . | . . . . . Installed . | . . . . . Triggered . | . . . . . Machines | -11 -10 -10 -9 -8 ---------- Run | Yrd Mat Min Mat Mat Machines Disabled 3 | . . . 2 1 Max in Single Turn 2 | . . . 2 1 Machines Repaired . | . . . . . Machines Dismantled . | . . . . . Machines Sabotaged . | . . . . . Overloaded Fab Kills . | . . . . . Hacking | -11 -10 -10 -9 -8 --------- Run | Yrd Mat Min Mat Mat Machines Accessed 11 | . 4 . 5 2 Terminals 11 | . 4 . 5 2 Fabricators . | . . . . . Repair Stations . | . . . . . Recycling Units . | . . . . . Scanalyzers . | . . . . . Garrison Access . | . . . . . Total Hacks 34 | . 11 . 14 9 Successful 14 | . 6 . 5 3 Failed 20 | . 5 . 9 6 Catastrophic 4 | . . . 4 . Database Lockouts . | . . . . . Manual 30 | . 4 . 18 8 Terminals 34 | . 11 . 14 9 Fabricators . | . . . . . Repair Stations . | . . . . . Recycling Units . | . . . . . Scanalyzers . | . . . . . Garrison Access . | . . . . . Terminal Hacks 14 | . 6 . 5 3 Record 5 | . . . 4 1 Robot Analysis 2 | . 1 . . 1 Prototype ID Bank 1 | . 1 . . . Emergency Access Points 1 | . . . 1 . Alert Level 1 | . . . . 1 Locate Traps 1 | . 1 . . . Recall Investigation 1 | . 1 . . . Hauler Manifests 1 | . 1 . . . Zone Layout 1 | . 1 . . . Fabricator Hacks . | . . . . . Repair Station Hacks . | . . . . . Recycling Unit Hacks . | . . . . . Scanalyzer . | . . . . . Garrison Access Hacks . | . . . . . Unauthorized Hacks . | . . . . . Terminals . | . . . . . Fabricators . | . . . . . Repair Stations . | . . . . . Recycling Units . | . . . . . Scanalyzers . | . . . . . Garrison Access . | . . . . . Data Cores Recovered . | . . . . . Used . | . . . . . Hacking Detections 11 | . 4 . 5 2 Full Trace Events 4 | . . . 3 1 Feedback Events . | . . . . . Feedback Blocked . | . . . . . Robot Schematics Acquired . | . . . . . Robots Built . | . . . . . Authchips . | . . . . . Time . | . . . . . Total Robot Build Rating . | . . . . . Part Schematics Acquired . | . . . . . Parts Built . | . . . . . Authchips . | . . . . . Time . | . . . . . Total Part Build Rating . | . . . . . Parts Repaired . | . . . . . Time . | . . . . . Parts Recycled . | . . . . . Recycled Matter . | . . . . . Retrieved Matter . | . . . . . Retrieved Components . | . . . . . Parts Scanalyzed . | . . . . . Part Schematics Acquired . | . . . . . Parts Damaged . | . . . . . Bothacking | -11 -10 -10 -9 -8 ------------ Run | Yrd Mat Min Mat Mat Used RIF Installer . | . . . . . Robots Hacked . | . . . . . Non-combat . | . . . . . Combat . | . . . . . Robot Hacks Applied . | . . . . . Relay Couplers Released . | . . . . . Fabnet Peak Effective % . | . . . . . Robots Rewired . | . . . . . Allies Hacked . | . . . . . Hacks Repelled . | . . . . . Allies | -11 -10 -10 -9 -8 -------- Run | Yrd Mat Min Mat Mat Total Allies 3 | . . 3 . . Largest Group 3 | . . 3 3 . Highest-Rated Group 77 | . . 77 77 . Highest-Rated Ally 31 | . . 31 31 . Total Orders . | . . . . . Ally Attacks 25 | . . 14 11 . Total Damage 367 | . . 238 129 . Kills 7 | . . 4 3 . Allies Corrupted . | . . . . . Allies Melted . | . . . . . Intel | -11 -10 -10 -9 -8 ------- Run | Yrd Mat Min Mat Mat Robot Analysis Total 2 | . 1 . . 1 Derelict Logs Recovered . | . . . . . Drone Launches . | . . . . . Drone Recoveries . | . . . . . Exploration | -11 -10 -10 -9 -8 ------------- Run | Yrd Mat Min Mat Mat Turns Passed 2514 | 63 621 206 1406 218 Spaces Moved 1275 | 39 395 124 640 77 Core 3 | 3 . . . . Treads 784 | . . 67 640 77 Legs 488 | 36 395 57 . . Wheels . | . . . . . Hover . | . . . . . Flight . | . . . . . Fastest Speed 50 | 50 120 120 160 160 Average Speed 144 | 127 120 141 160 160 Slowest Speed 190 | 190 120 160 160 160 Overloaded Moves . | . . . . . Propulsion Burnouts . | . . . . . Robots Hopped . | . . . . . Cave-ins Triggered . | . . . . . Exploration Rate (%) 33 | 3 50 35 68 12 Regions Visited 4 Branch Regions 1 Pre-discovered Areas . | . . . . . Known Exits Taken . | . . . . . Unknown Exits Taken 4 | 1 1 1 1 . Scrap Searched . | . . . . . Spaces Dug . | . . . . . Terrain Destroyed 24 | . . . 24 . Melee . | . . . . . Projectile . | . . . . . AOE 24 | . . . 24 . Terrain Rammed . | . . . . . Walls Destroyed . | . . . . . Machines Disabled . | . . . . . Actions | -11 -10 -10 -9 -8 --------- Run | Yrd Mat Min Mat Mat Total 1645 | 49 481 155 840 120 Wait 94 | . 13 22 44 15 Move 1271 | 38 394 123 639 77 Hop . | . . . . . Pick Up 22 | 4 7 2 8 1 Fast Attach 12 | 6 1 . 5 . Attach 9 | . . 2 4 3 Detach 1 | . . . 1 . Swap 27 | 1 10 1 15 . Drop 32 | . 12 3 17 . Fire 163 | . 41 . 98 24 Melee . | . . . . . Ram . | . . . . . Kick 3 | . 3 . . . Crush 11 | . . 2 9 . Escape Stasis . | . . . . . Rewire . | . . . . . Trap . | . . . . . Miscellaneous . | . . . . . Route ------- -11/Scrapyard -10/Materials -10/Mines -9/Materials (discovered 4 exits: *Mat x2 / [*Min] / [*Sto]) -8/Materials History --------- Turn | Location | Event 31 | -11/Scrapyard | Discovered new exit (range 16) 64 | -11/Scrapyard | Entered Materials 193 | -10/Materials | Discovered new exit (range 17) 302 | -10/Materials | Build established: Mutant 685 | -10/Materials | Entered Mines 751 | -10/Mines | Received a Mining Laser from a helpful Derelict 812 | -10/Mines | Discovered new exit (range 15) 891 | -10/Mines | Entered Materials 891 | -9/Materials | Accompanied by 3 allies 891 | -9/Materials | Evolved 2 slots: Propulsion x1, Utility x1 896 | -9/Materials | Led the pair of lost Derelicts to an unsafe place 979 | -9/Materials | Build established: Scavenger-Mutant 1357 | -9/Materials | Destroyed 7 combat bots 1394 | -9/Materials | Discovered new exit (range 15) 1544 | -9/Materials | Build established: Mutant 1621 | -9/Materials | Discovered new exit (range 8) 1763 | -9/Materials | Discovered new exit (range 11) 1915 | -9/Materials | Build established: Scavenger-Mutant 2225 | -9/Materials | Discovered new exit (range 4) 2297 | -9/Materials | Entered another Materials area 2297 | -8/Materials | Evolved 2 slots: Propulsion x1, Weapon x1 2515 | -8/Materials | Self-destructed Last Messages --------------- 02493_ K-01 Serf collects debris. 02495_ S-10 Pest destroyed. 02496_ K-01 Serf collects debris. 02496_ W-25 Informer sends out distress signal. 02500_ K-01 Serf collects debris. 02502_ G-47 Trooper destroyed. 02504_ K-01 Serf collects debris. 02504_ R-06 Scavenger inserts Heat Sink into recycling unit. 02507_ R-06 Scavenger inserts Structural Scanner into recycling unit. 02509_ K-01 Serf collects debris. 02510_ ALERT: Hostiles spotted, dispatching reinforcements to Terminal M008. 02510_ R-06 Scavenger inserts Flight Unit into recycling unit. 02512_ K-01 Serf collects debris. 02513_ R-06 Scavenger inserts Lgt. Assault Rifle into recycling unit. 02515_ K-01 Serf collects debris. Map ----- +----------------------------------------------------+ | ????????????????????????????????????? | | ????????????????????????????????????? | | ????????????????????????????????????? | | ????????????????????????????????????? | | ????????????????????????????????????? | | ????????????????????????????????????? | | ????????????????????????????????????? | | ????????????????????????????????????? | | ????????????????????????????????????? | | ????????????????????????????????????? | | ????????????????????????????????????? | | ????????????????????? ????????????? | | ???????????????????? ??? ??#?????? | | ??????????????????## ?##????????? | | ?????????????????#??# #??#????????? | | ?????????????????#?## # ? ?? ? ?? | | ????????????"?? ?#### +?????? ? ?? | | ??????????? ?? ??#?# #?""????#??#? | | ????????#?"S ???#### # ??" ?#?#?#? | | ??????#?? """ ??#### #?? ????##### | | ????????? " ? +? ###??##?#?### | | ?????????? ? ?#?## #####%#####?# | | ????????#####+###?### # [!!! #?# | | ????????#?# ^ ##### #[ == #?? | | ????????### #|! """ #?? | | ?????#????# #@* """ #?# | | ???????#??# !% T Yg=""r """ ### | | ???#?????## =%#k"Y #?? | | ????#?????##### **#="" #?# | | ????#?#???##### []] # #?? | | ????????##?#### [][ ###########?? | | ??????#??###### *[] ###??#?#??##? | | ?###??#??#== ## [%= #??#?#?#?##?# | | ?#??#??###== != ###?????#???? | | ?????#???#!! ##??#???????? | | ???##????#!! ##?#????#???? | | ??#?##??##!! """ ##???#?##???? | | ?#?#??##?#!! """ ###?#?#?##???? | | ???##??####### """ ##????##?????? | | ? #??#???#??# ###??????????? | | ?????#?###??## #????#???????? | | ? ?????#?##### """ #???##???????? | | ? ??????#?##?# """ ###??????????? | | ????#?##??##?# """ #?#?###??????? | | ??????#?#?#??# ###??#?##????? | | ? ??###?#?#### #?#?####?????? | | ??????#?##?### # ? ?? ????? | | ??##??#?#???## !! # """??????? | | ????#?#####?## = !! # ? ?"" ?????? | | ??#??#?#?#?#?# =%[ #? ??????????? | +----------------------------------------------------+ Best States ------------- Heat Dissipation 31 Energy Generation 12 Energy Capacity 265 Matter Stores 300 Matter Capacity 300 Sight Range 18 Terrain Scan Range 14 Terrain Scan Density 85 Armor Coverage 225 Evasion (%) 55 Recoil Reduction 4 Item Schematics ----------------- None Robot Schematics ------------------ None Fabricated ------------ Nothing Alien Tech Used ----------------- None Achievements -------------- GoHome() Power Corrupts Challenges ------------ None Game ------ Seed CoilAntimissilePit Manual? 0 Play Time 00:35:30 Cumulative 6.4 hours Start 2024.04.14 @ 01:19:29 End 2024.04.14 @ 01:55:57 Sessions 1 Manual Loads 0 Difficulty Rogue Special Mode None Game No. 5 Rogue 5 Adventurer 0 Explorer 0 Win Type - Total 0 Types 0/0/0/0/0/0/0/0/0 Lore% 7 Gallery% 10 Achievement% 10 Wizard Run 0 Options --------- Layout 1 ASCII 1 Keyboard 1 Movement Numpad Keybinds 0 Fullscreen 1 Font 24/Cog Map View 50x35 Zoom Use 0% Tactical HUD 1 Map Filters NONE Filters NONE Steam 1 RUN: a659c61b-b5d8-42e2-a992-2e7805d187a2